fUSD/lending_fUSD_20250326
["ID","MTS","AMOUNT","RATE_DAILY","PERIOD"]
[356694384,1742980246694,-208.9478165,0.0003625,30]
[356694385,1742980246705,-573.84,0.00036251,44]
[356694386,1742980246714,-168.63911419,0.00036251,7]
[356694387,1742980246724,-174.02165,0.00036251,58]
[356694388,1742980246733,-157.0,0.00036251,7]
[356694389,1742980246742,-157.0,0.00036251,7]
[356694390,1742980246751,-157.0,0.00036251,7]
[356694391,1742980246761,-157.0,0.00036251,7]
[356694393,1742980246771,-276.75783169,0.00036251,7]
[356694395,1742980246780,-150.0,0.00036251,2]
[356694397,1742980246792,-17149.3610787,0.00036272,2]
[356694399,1742980246801,-8264.8381799,0.00036297,2]
[356694401,1742980246811,-155.056328,0.00036322,7]
[356694403,1742980246820,-155.056328,0.00036322,7]
[356694405,1742980246829,-151.0,0.00036322,7]
[356694407,1742980246841,-151.0,0.00036322,7]
[356694409,1742980246851,-161.654689,0.00036322,7]
[356694411,1742980246860,-151.0,0.00036322,7]
[356694413,1742980246869,-151.0,0.00036322,7]
[356694415,1742980246879,-152.0,0.00036497,3]
[356694417,1742980246888,-155.056328,0.00036786,7]
[356694419,1742980246897,-155.056328,0.00036786,7]
[356694421,1742980246906,-159.24483,0.00036786,7]
[356694423,1742980246916,-223.996322,0.00036786,7]
[356694425,1742980246925,-151.0,0.00036786,7]
[356694427,1742980246934,-151.0,0.00036786,7]
[356694428,1742980246943,-642.0,0.00036786,2]
[356694429,1742980246952,-788.0,0.00036786,2]
[356694430,1742980246962,-1273.0,0.00036786,2]
[356694431,1742980246971,-907.0,0.00036786,2]
[356694432,1742980246981,-1394.714,0.00036786,2]
[356694433,1742980246989,-481.093,0.00036786,2]
[356694434,1742980246998,-3943.0,0.00036786,2]
[356694435,1742980247008,-151.0,0.00036786,2]
[356694436,1742980247017,-477.284,0.00036786,2]
[356694437,1742980247027,-200.0,0.00036815,10]
[356694438,1742980247036,-1284.28337011,0.00036989,2]
[356694439,1742980247045,-12461.8604,0.00036989,2]
[356694440,1742980247054,-623.64789882,0.00037012,41]
[356694441,1742980247064,-1000.0,0.00037012,2]
[356694442,1742980247074,-2133.5743,0.00037012,2]
[356694443,1742980247084,-2500.0,0.00037012,2]
[356694444,1742980247093,-1000.0,0.00037012,2]
[356694445,1742980247103,-1000.0,0.00037044,2]
[356694446,1742980247113,-150.0,0.00037065,2]
[356694447,1742980247122,-150.0,0.00037065,2]
[356694448,1742980247131,-150.0,0.00037065,2]
[356694449,1742980247141,-150.0,0.00037065,2]
[356694450,1742980247151,-151.0,0.00037065,7]
[356694451,1742980247161,-151.0,0.00037065,7]
[356694452,1742980247170,-151.0,0.00037065,7]
[356694453,1742980247179,-151.0,0.00037065,7]
[356694454,1742980247188,-151.0,0.00037065,7]
[356694455,1742980247198,-28059.86277987,0.00037089,7]
[356694456,1742980247222,-22940.13722013,0.00037089,7]
[356694457,1742980247232,-151.0,0.00037089,7]
[356694458,1742980247242,-151.0,0.00037089,7]
[356694459,1742980247252,-151.0,0.00037089,7]
[356694460,1742980247261,-155.056328,0.00037089,7]
[356694461,1742980247271,-155.056328,0.00037089,7]
[356694462,1742980247280,-151.0,0.00037089,7]
[356694463,1742980247290,-151.0,0.00037089,7]
[356694464,1742980247299,-163.01785059,0.00037092,3]
[356694465,1742980247308,-500.0,0.00037092,3]
[356694466,1742980247318,-150.0,0.00037092,3]
[356694467,1742980247327,-500.0,0.00037092,3]
[356694468,1742980247337,-150.0,0.00037092,3]
[356694469,1742980247347,-500.0,0.00037092,3]
[356694470,1742980247357,-150.0,0.00037092,3]
[356694471,1742980247366,-500.0,0.00037092,3]
[356694472,1742980247375,-500.0,0.00037092,3]
[356694473,1742980247385,-500.0,0.00037092,3]
[356694474,1742980247394,-993.0,0.00037092,3]
[356694475,1742980247404,-1185.0,0.00037092,3]
[356694476,1742980247414,-500.0,0.00037092,3]
[356694477,1742980247528,-150.0,0.00037092,2]
[356694478,1742980247538,-500.0,0.00037092,3]
[356694479,1742980247547,-150.0,0.00037092,2]
[356694480,1742980247557,-500.0,0.00037092,3]
[356694481,1742980247567,-25131.84570476,0.00037112,2]
[356694482,1742980247579,-874.99,0.00037112,2]
[356694487,1742981109773,-150.0,0.00012,2]
[356694488,1742981120462,1216.79287958,9e-05,2]
[356694489,1742981137637,4549.31752529,8e-05,2]
[356694490,1742981163441,7297.89591465,8e-05,2]
[356694491,1742981169030,500.0,0.00032264,30]
[356694492,1742981193283,-150.24,0.00011999,2]
[356694494,1742981223473,-150.0,0.00011999,2]
[356694495,1742981223499,-75.39008775,0.00011999,2]
[356694503,1742981228872,958.94800222,9.14e-05,2]
[356694504,1742981231622,151.0,0.00013,3]
[356694508,1742981247858,178.94298567,0.0001,2]
[356694510,1742981253324,3100.0,0.000119,4]
[356694511,1742981275159,2623.85616325,0.0001,2]
[356694512,1742981279016,306980.83878282,0.0001,2]
[356694513,1742981285314,209.85035169,9.5e-05,2]
[356694514,1742981289955,150.0,0.0001,2]
[356694515,1742981311783,2580.65477605,9.828e-05,2]
[356694516,1742981313321,215.42277812,0.0001,2]
[356694528,1742981353992,-274.77666258,0.00011899,2]
[356694772,1742981365644,-65.13052621,0.00011899,2]
[356694773,1742981365678,-90.86498709,0.00011999,2]
[356694774,1742981365708,-197.49725425,0.00011999,2]
[356694775,1742981365737,-150.0,0.00012,2]
[356694776,1742981365769,-3255.50723245,0.00012,2]
[356694777,1742981366540,-150.0,0.00012,2]
[356694778,1742981375554,-225.39008775,0.00012,2]
[356694779,1742981377991,-2591.52653399,0.00012,2]
[356694781,1742981401002,-5845.0,0.00012,2]
[356694782,1742981401682,-152.37,0.00012,2]
[356694783,1742981403967,-150.0,0.00011999,2]
[356694784,1742981403996,-28.67,0.00012,2]
[356694785,1742981404159,350.0,0.00011999,3]
[356694786,1742981404221,350.0,0.00012571,3]
[356694787,1742981412739,-471.10690917,0.00012,2]
[356694794,1742981431558,-8754.7,0.00012,2]
[356694795,1742981431666,-741031.32303851,0.00012,2]
[356694796,1742981431778,-243825.55896266,0.00012,2]
[356694797,1742981431886,-1212.17759608,0.00012,2]
[356694800,1742981432310,-218.42002402,0.00012,2]
[356694806,1742981437433,-3896.50348651,0.00012,2]
[356694807,1742981437448,-2943.84242347,0.00012,2]
[356694808,1742981437463,-5508.92049053,0.00012,2]
[356694809,1742981437488,-3398.66930151,0.00012,2]
[356694810,1742981437545,-318.57643743,0.00012,2]
[356694811,1742981437561,-4584.40866984,0.00012,2]
[356694812,1742981437602,-543.48961775,0.00012,2]
[356694813,1742981437659,-92851.52086371,0.00012,2]
[356694814,1742981437672,-1570.14467659,0.00012679,2]
[356694815,1742981437685,-225.39008775,0.00012779,2]
[356694816,1742981437698,-162.18215292,0.00012879,2]
[356694817,1742981437710,-255.0,0.00013079,2]
[356694818,1742981437722,-350.0,0.00013199,3]
[356694819,1742981437735,-150.0,0.00013199,2]
[356694820,1742981437747,-150.0,0.00013199,2]
[356694821,1742981437761,-1570.14467654,0.00016135,2]
[356694822,1742981437772,-162.18215286,0.00017596,2]
[356694823,1742981437785,-4681.27,0.00017596,2]
[356694824,1742981437799,-1570.14467654,0.00019591,2]
[356694825,1742981437812,-880.42,0.0002,4]
[356694826,1742981437823,-151.4,0.0002,2]
[356694827,1742981437836,-151.4,0.0002,2]
[356694828,1742981437847,-151.4,0.0002,2]
[356694829,1742981437860,-151.4,0.0002,2]
[356694830,1742981437872,-151.4,0.0002,2]
[356694831,1742981437884,-2000.0,0.0002,4]
[356694832,1742981437897,-162.18215286,0.00022314,2]
[356694833,1742981437910,-1570.14467654,0.00023047,2]
[356694834,1742981437920,-2000.0,0.00023333,4]
[356694835,1742981437929,-6300.0,0.000239,8]
[356694836,1742981437938,-150.0,0.00023999,2]
[356694837,1742981437948,-34917.78,0.00024,5]
[356694838,1742981437957,-355.79298745,0.000247,3]
[356694840,1742981438123,-1570.14467654,0.00026503,2]
[356694841,1742981438145,-1247.26591529,0.00026667,4]
[356694842,1742981438155,-158.67,0.00026849,2]
[356694843,1742981438164,-162.18215286,0.00027031,2]
[356694844,1742981438174,-250.0,0.00028536,2]
[356694845,1742981438183,-1008.8050197,0.00029286,3]
[356694846,1742981438191,-1000.0,0.00029327,2]
[356694847,1742981438202,-500.0,0.00029475,2]
[356694848,1742981438211,-1570.14467654,0.00029958,2]
[356694849,1742981438221,-424.79832415,0.0003068,2]
[356694850,1742981438233,-818.775,0.0003068,2]
[356694851,1742981438265,-832.25,0.0003068,2]
[356694852,1742981438311,-567.49999945,0.0003068,2]
[356694855,1742981439571,-950.0385497,0.0003068,2]
[356694856,1742981439612,-1338.83164507,0.0003068,2]
[356694857,1742981439625,-259.71546597,0.0003068,2]
[356694858,1742981439650,-892.74919855,0.0003068,2]
[356694859,1742981439660,-151.4,0.0003089,2]
[356694860,1742981439670,-2511.72368006,0.0003089,2]
[356694861,1742981439679,-5956.06671145,0.000309,2]
[356694862,1742981439861,-0.03615135,0.000309,2]
[356694863,1742981440046,-10.72623555,0.000309,2]
[356694864,1742981440067,-293.06047361,0.000309,2]
[356694865,1742981440079,-1508.16,0.000309,2]
[356694873,1742981442548,-521.36638924,0.000309,2]
[356694874,1742981442561,-846.0,0.000309,2]
[356694875,1742981442573,-495.58079881,0.000309,2]
[356694876,1742981442585,-1463.63516172,0.000309,2]
[356694877,1742981442596,-1711.87058023,0.000309,2]
[356694878,1742981442619,-537.35,0.000309,2]
[356694879,1742981442659,-296.21242944,0.000309,2]
[356694880,1742981442671,-60225.03761131,0.000309,2]
[356694881,1742981442681,-162.18215286,0.00031748,2]
[356694882,1742981442690,-151.0,0.00032093,7]
[356694883,1742981442699,-21618.2744972,0.00032093,2]
[356694884,1742981442709,-16468.8397689,0.00032093,2]
[356694885,1742981442720,-190.29167129,0.00032264,7]
[356694886,1742981442730,-502.90636821,0.00032264,7]
[356694887,1742981442739,-2292.43825176,0.0003252,2]
[356694888,1742981442751,-1648.35826467,0.0003252,2]
[356694889,1742981442762,-2.20348357,0.0003252,2]
[356694890,1742981442772,-151.0,0.0003252,2]
[356694891,1742981442781,-151.0,0.0003252,2]
[356694892,1742981442790,-1000.0,0.00032992,2]
[356694893,1742981442800,-229.50836646,0.00033017,30]
[356694894,1742981442811,-541.54300055,0.00033017,30]
[356694895,1742981444291,-2066.5553551,0.00033017,30]
[356694896,1742981444306,-921.03462736,0.00033017,30]
[356694897,1742981444315,-306.95276255,0.00033017,30]
[356694898,1742981444324,-1825.61,0.00033395,2]
[356694899,1742981444335,-1194.35756858,0.00033414,2]
[356694900,1742981444346,-375.78710796,0.00033414,2]
[356694901,1742981444355,-151.4,0.00033934,2]
[356694902,1742981444364,-3672.86284204,0.00033944,2]
[356694903,1742981444379,-443.4506406,0.00033944,2]
[356694904,1742981444390,-1686.9027162,0.00033944,2]
[356694934,1742981445509,-17660.02056615,0.00033944,2]
[356694937,1742981445521,-5849.75323501,0.00033944,2]
[356694939,1742981445531,-151.0,0.00033944,7]
[356694941,1742981445540,-742.59,0.00034115,2]
[356694943,1742981445550,-642.0,0.00034388,2]
[356694945,1742981445559,-304.088,0.00034409,2]
[356694947,1742981445568,-461.52664251,0.00034409,2]
[356694949,1742981445579,-294.53376716,0.00034409,2]
[356694951,1742981445621,-516.93959033,0.00034409,2]
[356694952,1742981445630,-907.0,0.00034409,2]
[356694954,1742981445639,-1116.0,0.00034409,2]
[356694956,1742981445648,-1000.0,0.00034954,2]
[356694958,1742981445661,-402.04910932,0.00035228,2]
[356694960,1742981445670,-151.0,0.00035248,7]
[356694962,1742981445679,-9853.72613065,0.00035248,2]
[356694969,1742981445731,-594.97552424,0.00035248,2]
[356694971,1742981445742,-1114.0,0.00035248,2]
[356694997,1742981582199,-250.0,0.00013698,2]
[356694998,1742981597076,270.36942898,0.00032244,30]
[356694999,1742981607956,808.21386547,0.00032244,30]
[356695000,1742981631056,1078.58329445,0.00032244,30]
[356695001,1742981632339,3219.61611503,0.00032244,30]
[356695002,1742981642040,-155.426093,0.00013698,2]
[356695003,1742981646749,2697.37795049,0.00032244,60]
[356695004,1742981706478,160.27,0.00032244,30]
[356695005,1742981748321,-168.48,0.00013699,2]
[356695006,1742981764530,3089.0,0.00032244,31]
[356695007,1742981764881,3089.0,0.00032244,31]
[356695008,1742981765233,3089.0,0.00032244,31]
[356695009,1742981765611,3089.0,0.00032244,31]
[356695010,1742981766007,3092.0,0.00032244,31]
[356695011,1742981766415,3089.0,0.00032244,31]
[356695012,1742981857564,-166.23,0.0002801,30]
[356695013,1742981882435,-150.0,0.00015068,3]
[356695014,1742981906365,-63.98,0.00013699,2]
[356695015,1742981906386,-232.46,0.00013699,2]
[356695016,1742981906409,-232.46,0.00013699,2]
[356695017,1742981906429,-232.46,0.00013699,2]
[356695018,1742981906451,-232.46,0.00013699,2]
[356695019,1742981906470,-6.18,0.00013699,2]
[356695020,1742981917049,-226.28,0.00013699,2]
[356695021,1742981917071,-232.46,0.00013699,2]
[356695022,1742981917092,-232.46,0.00013699,2]
[356695023,1742981917113,-232.46,0.00013699,2]
[356695024,1742981917134,-76.34,0.00013699,2]
[356695025,1742981926486,-156.12,0.00013699,2]
[356695026,1742981926513,-232.46,0.00013699,2]
[356695027,1742981926534,-232.46,0.00013699,2]
[356695028,1742981926554,-232.46,0.00013699,2]
[356695029,1742981926574,-146.5,0.00013699,2]
[356695030,1742981941118,-85.96,0.00013699,2]
[356695031,1742981941140,-232.46,0.00013699,2]
[356695032,1742981941161,-181.58,0.00013699,2]
[356695035,1742982395842,-151.33,0.00013698,3]
[356695036,1742982430661,6002.51,0.00032204,30]
[356695386,1742982631846,-6376.83297486,0.00013698,3]
[356695387,1742982631856,-350.0,0.00013698,3]
[356695388,1742982631866,-50.88,0.00013699,2]
[356695389,1742982631875,-232.46,0.00013699,2]
[356695390,1742982631884,-232.46,0.00013699,2]
[356695391,1742982631893,-232.46,0.00013699,2]
[356695392,1742982631903,-232.60337207,0.00013699,2]
[356695393,1742982631912,-350.0,0.00014734,3]
[356695394,1742982631921,-350.0,0.00015067,3]
[356695395,1742982631931,-389.41365404,0.0001799,2]
[356695396,1742982631943,-641.60804426,0.0001799,2]
[356695397,1742982632004,-548.61451772,0.0001799,2]
[356695398,1742982632015,-2214.58419039,0.0002383,2]
[356695472,1742982637641,-438.92440893,0.0002383,2]
[356695477,1742982639851,-109.69010868,0.0002383,2]
[356695478,1742982639861,-500.0,0.0002395,2]
[356695479,1742982639871,-155.93,0.0002395,2]
[356695480,1742982639880,-584.0,0.00024548,2]
[356695481,1742982639890,-250.0,0.00025,2]
[356695482,1742982639900,-157.52,0.00026849,2]
[356695483,1742982639909,-6464.70315993,0.00026999,2]
[356695484,1742982639919,-300.0,0.00027,2]
[356695485,1742982639928,-13640.74946019,0.00027,2]
[356695486,1742982639957,-9257.15,0.00027,2]
[356695487,1742982639968,-10822.67097391,0.00027,2]
[356695488,1742982639979,-410.77993,0.00027,2]
[356695489,1742982640169,-715.02255224,0.00027,2]
[356695494,1742982643274,-6745.47071883,0.00027,2]
[356695497,1742982644636,-250.10485488,0.00027,2]
[356695549,1742982693334,1000.0,0.00032204,30]
[356695550,1742982927370,330.0,0.00032204,120]
[356695551,1742983032475,1000.0,0.00032204,60]
[356695552,1742983239818,8220.32,0.00032204,30]
[356695553,1742983406957,324.75956685,0.00032204,120]
[356695554,1742983435681,671.02829364,0.00032204,120]
[356695904,1742983806505,158.07644563,0.0001,2]
[356695925,1742983837753,-151.33,0.00013699,2]
[356695926,1742983837763,-101.57102083,0.00015068,3]
[356695927,1742983837808,-248.42897917,0.00015068,3]
[356695928,1742983837817,-72.90102083,0.00017384,3]
[356695929,1742983837913,-277.09897917,0.00017384,3]
[356695930,1742983837922,-500.0,0.00021068,2]
[356695931,1742983837931,-350.0,0.00021225,3]
[356695932,1742983837940,-345.88125346,0.00022274,2]
[356695933,1742983837951,-154.11874654,0.00022274,2]
[356695934,1742983837961,-500.0,0.00024082,2]
[356695935,1742983837971,-250.0,0.00025,2]
[356695936,1742983837980,-92.00759805,0.00025303,2]
[356695937,1742983838020,-310.04151127,0.00025303,2]
[356695938,1742983838039,-402.04910932,0.00025667,2]
[356695939,1742983838058,-402.04910932,0.00025842,2]
[356695940,1742983838067,-402.04910932,0.00026085,2]
[356695941,1742983838077,-402.04910932,0.00026378,2]
[356695942,1742983838087,-500.0,0.00026767,2]
[356695943,1742983838096,-402.04910937,0.00026796,2]
[356695944,1742983838106,-159.57,0.00026849,2]
[356695945,1742983838115,-343.93322125,0.000269,4]
[356695946,1742983838124,-493.46632155,0.0002697,4]
[356695947,1742983838134,-1922.46825269,0.00027,2]
[356695970,1742983840261,-274.1811,0.00027,2]
[356695975,1742983846003,-2417.182,0.00027,2]
[356695976,1742983846057,-10955.81092486,0.00027,2]
[356695977,1742983846071,-291.26261865,0.00027,2]
[356695978,1742983846111,-525.86964,0.00027,2]
[356695979,1742984231529,703.34326552,0.00032204,120]
[356695981,1742984708734,28841.92355437,0.00012,2]
[356695982,1742984708762,50000.0,0.00012,2]
[356695983,1742984709069,283.5463311,0.00032206,90]
[356695984,1742984710345,-153.19309302,0.00012,2]
[356695985,1742984712634,2264.13684803,0.00032206,120]
[356695986,1742984713017,301.12203708,0.00032206,30]
[356695987,1742984713131,260.6633902,0.00032206,91]
[356695988,1742984720011,334.77118515,0.00032206,120]
[356695989,1742984720866,1910.97576989,0.00032206,120]
[356695990,1742984728537,373.73732277,0.00032206,30]
[356695991,1742984729253,407.80944947,0.00032206,30]
[356695992,1742984740485,1323.62388763,0.00032206,120]
[356695993,1742984742062,890.81647955,0.00032206,120]
[356695994,1742984744284,1598.10866827,0.00032206,120]
[356695995,1742984747254,338.51766859,0.00032206,120]
[356695996,1742984756535,1475.72209565,0.00032206,30]
[356695997,1742984761171,451.10745626,0.00032206,90]
[356695998,1742984765357,2525.51517966,0.00032206,120]
[356695999,1742984768540,821.5825248,0.00032206,120]
[356696000,1742984768978,307.95080782,0.00032206,30]
[356696001,1742984773471,181.3711618,0.00032206,30]
[356696002,1742984774877,1841.53411603,0.00032206,120]
[356696003,1742984776962,207.98966282,0.00032206,120]
[356696004,1742984782930,1891.89067401,0.00032206,120]
[356696005,1742984788567,1160.10365101,0.00032206,120]
[356696006,1742984793992,-215.50537936,0.00011999,2]
[356696007,1742984814023,215.23259835,0.00032206,120]
[356696008,1742984819860,-6.04117302,0.00011999,2]
[356696009,1742984819884,-192.99354554,0.00011999,2]
[356696010,1742984819906,-50.96528144,0.00011999,2]
[356696011,1742984821074,1749.28396662,0.00032206,120]
[356696012,1742984821516,1354.6871172,0.00032206,120]
[356696025,1742984833416,186.32728763,0.00032206,120]
[356696028,1742984854800,462.64071918,0.00032206,120]
[356696029,1742984859202,2024.64714743,0.00032206,120]
[356696030,1742984859776,-150.0,0.00011999,2]
[356696031,1742984859800,-100.0,0.00011999,2]
[356696032,1742984867145,1080.32118211,0.00032206,120]
[356696033,1742984872504,464.96601225,0.00032206,120]
[356696034,1742984880432,368.50720085,0.00032206,30]
[356696035,1742984882080,950.2821636,0.00032206,120]
[356696038,1742984905787,338.63880508,0.00032206,120]
[356696039,1742984910001,1280.72457032,0.00032206,120]
[356696040,1742984910710,2028.04732132,0.00032206,120]
[356696041,1742984911348,176.47268776,0.00032206,30]
[356696042,1742984911601,424.58621476,0.00032206,30]
[356696043,1742984911858,1567.99188776,0.00032206,120]
[356696044,1742984912443,1679.23841667,9.828e-05,2]
[356696045,1742984912923,881.44563033,0.00032206,120]
[356696047,1742984913509,1197.05826254,0.00032206,120]
[356696048,1742984914079,243.32247982,0.00032206,60]
[356696049,1742984916335,1291.46561023,0.00032206,120]
[356696050,1742984916404,1096.72705752,0.00032206,120]
[356696051,1742984917041,407.36860842,0.00032206,120]
[356696052,1742984918747,977.19616223,0.00032206,120]
[356696053,1742984919896,210.37172566,0.00032206,120]
[356696054,1742984921336,506.37932172,0.00032206,120]
[356696055,1742984921963,603.64388766,0.00032206,120]
[356696056,1742984922224,197.45332474,0.00032206,120]
[356696409,1742985002285,350.0,0.00012,3]
[356696410,1742985002838,-243.31,0.00013199,3]
[356696411,1742985019786,-202.672,0.00011999,2]
[356696412,1742985028629,-202.672,0.00011939,2]
[356696413,1742985028654,-34.746357,0.00011999,2]
[356696427,1742985032054,-111.61636156,0.00011999,2]
[356696428,1742985032064,-425.49284777,0.00011999,2]
[356696429,1742985032073,-4.23579067,0.00012,2]
[356696430,1742985032084,-14160.51205207,0.00012,2]
[356696431,1742985032095,-681.5968828,0.00012,2]
[356696432,1742985032106,-7853.78555681,0.00012,2]
[356696433,1742985032117,-284.23252147,0.00012,2]
[356696434,1742985032212,-1410.54215506,0.00012,2]
[356696435,1742985032223,-949.92682377,0.00012,2]
[356696436,1742985032267,-1833.59609436,0.00012,2]
[356696437,1742985032278,-7146.19028969,0.00012,2]
[356696438,1742985032321,-8035.48846625,0.00012,2]
[356696439,1742985032332,-1073.51207392,0.00012,2]
[356696440,1742985032379,-7211.0,0.00012,2]
[356696441,1742985032391,-20707.4004044,0.00012,2]
[356696442,1742985032431,-1183.75244842,0.00012,2]
[356696444,1742985032787,-150.0,0.00012,2]
[356696450,1742985037991,-4975.35285482,0.00012,2]
[356696451,1742985038043,-8834.9608706,0.00012,2]
[356696452,1742985038054,-6342.41202674,0.00012,2]
[356696453,1742985038065,-311.184893,0.00012,2]
[356696454,1742985038076,-925.61838334,0.00012,2]
[356696455,1742985038150,-2300.80000002,0.00012,2]
[356696456,1742985038161,-3532.79070223,0.00012,2]
[356696457,1742985038172,-1897.746352,0.00012,2]
[356696458,1742985038184,-1563.46598488,0.00012,2]
[356696459,1742985038195,-317.97039785,0.00012,2]
[356696460,1742985038210,-112299.08398073,0.00012,2]
[356696461,1742985038219,-250.00000001,0.00013099,2]
[356696462,1742985038228,-106.69,0.00013199,3]
[356696463,1742985038237,-350.0,0.00020126,3]
[356696464,1742985038246,-153.19309302,0.000249,2]
[356696465,1742985038256,-332.46878059,0.00025,4]
[356696466,1742985038266,-205.43564,0.0002673,38]
[356696467,1742985038275,-158.67,0.00026849,2]
[356696468,1742985038284,-3961.39671505,0.00027,2]
[356696469,1742985038294,-300.0,0.00027,2]
[356696470,1742985038303,-9020.37,0.00027,2]
[356696471,1742985038312,-2616.0,0.00027739,20]
[356696472,1742985038321,-4661.4886445,0.00028782,2]
[356696473,1742985038330,-980.9860156,0.00028802,2]
[356696474,1742985038339,-500.0,0.00028822,2]
[356696475,1742985038348,-350.0,0.00029,2]
[356696476,1742985038358,-205.0,0.00029,2]
[356696477,1742985038367,-205.43564,0.0002923,43]
[356696478,1742985038377,-150.0,0.000297,2]
[356696479,1742985038389,-675.41965093,0.00029871,4]
[356696480,1742985038398,-205.0,0.0003,2]
[356696481,1742985038407,-705.46,0.00030442,2]
[356696482,1742985038417,-5556.36820223,0.0003068,2]
[356696483,1742985038426,-1237.0058218,0.000309,2]
[356696484,1742985038435,-400.0,0.00031,2]
[356696485,1742985038445,-205.0,0.00031,2]
[356696486,1742985038454,-250.0,0.00031002,2]
[356696487,1742985038463,-255.8,0.00031002,4]
[356696488,1742985038473,-150.0,0.0003105,5]
[356696489,1742985038482,-244.23917981,0.0003105,5]
[356696490,1742985038491,-500.0,0.00031076,3]
[356696491,1742985038500,-552.18,0.00031169,2]
[356696492,1742985038510,-23900.0,0.00031251,2]
[356696493,1742985038519,-695.721,0.00031499,29]
[356696494,1742985038528,-205.43564,0.0003173,49]
[356696495,1742985038537,-500.0,0.00031863,2]
[356696496,1742985038547,-897.4,0.0003189,2]
[356696497,1742985038557,-2836.53009496,0.0003189,2]
[356696498,1742985038566,-150.0,0.00031917,2]
[356696499,1742985038576,-150.0,0.00031924,7]
[356696500,1742985038585,-1349.7,0.00031926,2]
[356696501,1742985038594,-502.78,0.00032,4]
[356696502,1742985038604,-205.0,0.00032,2]
[356696503,1742985038613,-1000.0,0.00032007,2]
[356696504,1742985038622,-2690.0,0.00032204,30]
[356696505,1742985038632,-167.94,0.00032223,2]
[356696506,1742985038642,-496.63,0.00032232,2]
[356696507,1742985038651,-2886.77732524,0.00032232,30]
[356696536,1742985040675,-0.00874254,0.00032232,30]
[356696537,1742985040716,-1046.10393222,0.00032232,30]
[356696538,1742985040726,-8323.62127565,0.00032232,2]
[356696572,1742985043096,-329.5583,0.00032232,2]
[356696573,1742985043312,-702.25154985,0.00032232,2]
[356696582,1742985046041,-8623.08215343,0.00032232,2]
[356696583,1742985046337,-0.24267079,0.00032232,2]
[356696584,1742985046347,-3872.86336362,0.00032232,2]
[356696585,1742985046360,-1919.78,0.00032232,2]
[356696586,1742985046379,-5528.9851691,0.00032232,2]
[356696587,1742985046395,-699.60551756,0.00032232,2]
[356696588,1742985046404,-2320.6368,0.00032274,10]
[356696589,1742985046413,-4766.4100615,0.00032303,2]
[356696590,1742985046435,-2887.02917405,0.00032303,2]
[356696591,1742985046444,-2621.10603475,0.00032303,40]
[356696592,1742985046453,-208.63,0.00032307,2]
[356696593,1742985046462,-186.33,0.00032307,120]
[356696594,1742985046472,-1116.0,0.00032577,2]
[356696595,1742985046481,-705.46,0.00032706,2]
[356696596,1742985046490,-150.0,0.00032773,2]
[356696597,1742985046499,-71.40978822,0.00032881,120]
[356696638,1742985050204,-109.94021178,0.00032881,120]
[356696639,1742985050227,-47.74669932,0.00032938,2]
[356696641,1742985834944,-157.6869111,0.00025,2]
[356696642,1742985844756,-166.23,0.00025925,3]
[356696975,1742986232296,-92.3130889,0.00025,2]
[356696976,1742986232306,-350.0,0.00025,3]
[356696977,1742986232315,-111.2192422,0.00025,2]
[356696978,1742986232327,-139.254429,0.00025,2]
[356696979,1742986232336,-291.61174495,0.00025907,3]
[356696980,1742986232347,-58.38825505,0.00025907,3]
[356696981,1742986232358,-157.52,0.00026849,2]